Cogmind - Beta 14 --- EXPLORER MODE // 2024.11.10 @ 19:27:10 Player: Asura Daeva Result: Destroyed by 6D-VA8(R) with Subdweller Machine Gun Performance ------------- Evolutions (0) 0 Regions Visited (2) 400 Robots Destroyed (30) 150 Value Destroyed (595) 595 Prototype IDs (15) 300 Alien Tech Used (0) 0 Bonus (-7) -7 TOTAL SCORE: 1438 Bonus ------- Friendly Fire -7 Cogmind --------- Core Integrity 0/250 Matter 300/300 Energy 177/200 System Corruption 0% Temperature Cool (66) Movement Walking (130) Location -10/Subcaves Parts ------- > --- POWER (1) -------- Subdweller Power Source > --- PROPULSION (2) --- Cargo Legs > --- UTILITY (3+2) ---- Disposable Heat Sink Small Storage Unit > --- WEAPON (2) ------- Subdweller Laser Subdweller Beam Cannon > --- INVENTORY (8) ---- High-capacity Matter Pod (200) Tractor Beam Cobbler Unit Beam Rifle Subdweller Beam Cannon Subdweller Shrapnel Launcher Flamer Peak State ------------ > --- POWER ------------ Light Angular Momentum Engine > --- PROPULSION ------- Cargo Legs > --- UTILITY ---------- Disposable Heat Sink Small Storage Unit Structural Scanner > --- WEAPON ----------- Subdweller Beam Cannon Subdweller Beam Cannon > --- INVENTORY -------- High-capacity Matter Pod Tractor Beam Subdweller Beam Cannon Battle Rifle Subdweller Shrapnel Launcher Subdweller Shrapnel Launcher Flamer [Rating: 30] Favorites ----------- Power Subdweller Power Source Engine Subdweller Power Source Propulsion Light Treads Treads Light Treads Leg Aluminum Leg Utility Small Storage Unit Device Structural Scanner Storage Small Storage Unit Processor Targeting Computer Protection Scrap Shield Weapon Subdweller Beam Cannon Energy Gun EM Pulse Gun Energy Cannon Subdweller Beam Cannon Ballistic Gun Battle Rifle Launcher Subdweller Shrapnel Launcher Special Weapon Flamer Build | -11 -10 -10 ------- Run | Yrd Mat Sub Slots Evolved 1 | . 1 . Power . | . . . Propulsion . | . . . Utility 1 | . 1 . Weapon . | . . . Parts Attached 72 | 8 19 45 Power 8 | 1 2 5 Engine 8 | 1 2 5 Core . | . . . Reactor . | . . . Propulsion 8 | 2 5 1 Treads 3 | . 3 . Leg 5 | 2 2 1 Wheel . | . . . Hover . | . . . Flight . | . . . Utility 9 | 2 4 3 Device 3 | 1 . 2 Storage 3 | 1 2 . Processor 1 | . 1 . Hackware . | . . . Protection 2 | . 1 1 Artifact . | . . . Weapon 47 | 3 8 36 Energy Gun 11 | 3 4 4 Energy Cannon 11 | . 1 10 Ballistic Gun 13 | . 2 11 Ballistic Cannon . | . . . Launcher 5 | . . 5 Special Weapon 7 | . 1 6 Impact Weapon . | . . . Slashing Weapon . | . . . Piercing Weapon . | . . . Special Melee Weapon . | . . . Unidentified Prototypes . | . . . Parts Lost 4 | . . 4 Power . | . . . Propulsion 2 | . . 2 Utility 2 | . . 2 Weapon . | . . . Highest Loss Streak 3 | . . 3 To Critical Strikes 1 | . . 1 Average Slot Usage (%) 87 | . 99 83 Engine 11 | . 11 11 Treads 17 | . 7 20 Leg 5 | . 17 1 Device 5 | . 12 3 Storage 11 | . 12 11 Processor 2 | . 9 . Protection 7 | . 2 9 Energy Gun 5 | . 16 2 Energy Cannon 8 | . 4 10 Ballistic Gun 4 | . 2 5 Launcher 3 | . . 4 Special Weapon 1 | . 1 2 Peak Build Rating 30 | 8 11 30 Average Rating 14 | 6 8 16 On Entrance 6 | . 8 11 Naked Turns . | . . . Heaviest Build 48 | 19 21 48 Greatest Support 55 | 20 40 55 Greatest Overweight (x) 9 | 4 1 9 Average Overweight (x) . | . . . Largest Inventory Capacity 10 | 10 10 8 Average Capacity 8 | 9 8 8 Most Carried 10 | 10 10 8 Average Carried 7 | 8 7 7 Final Capacity 10 | 10 8 8 Final Carried 10 | 10 8 8 Class Distribution -------------------- 67% | Hacker-Mutant 32% | Subdweller-Mutant Dominant Class ---------------- Hacker-Mutant | -10/Materials Hacker-Mutant | -10/Subcaves Resources | -11 -10 -10 ----------- Run | Yrd Mat Sub Matter Collected 1436 | 280 357 799 Remotely . | . . . Salvage Created 848 | 235 459 154 Parts 44 | 18 20 6 Haulers Intercepted 2 | . 2 . Recyclers Shooed 2 | . 2 . Parts Field Recycled . | . . . Retrieved Matter . | . . . Parts Self-Destructed . | . . . Prevented . | . . . Kills | -11 -10 -10 ------- Run | Yrd Mat Sub Combat Hostiles Destroyed 16 | . 9 7 Guns 6 | . 5 1 Cannons 6 | . 2 4 AOE 3 | . 1 2 Classes Destroyed 9 | 3 4 2 Worker 2 | 2 . . Tunneler 5 | 5 . . Hauler 2 | . 2 . Recycler 1 | 1 . . Turret 2 | . . 2 Watcher 2 | . 2 . Swarmer 7 | . 4 3 Grunt 5 | . 5 . Subdweller 4 | . . 4 Best Kill Streak 5 | 3 4 5 Combat Bots Only 3 | . 2 3 Max Kills in Single Turn 2 | 1 2 1 Gunslinging . | . . . Exploded 1 | . 1 1 Melee . | . . . Uniques/NPCs Destroyed . | . . . Combat | -11 -10 -10 -------- Run | Yrd Mat Sub Hostile Shots Fired 194 | . 31 163 Missed 61 | . 13 48 Damage Taken 1655 | 26 132 1497 Core 260 | . 24 236 Absorbed by Shields . | . . . Ignored by Resistances 937 | 14 82 841 Regen/Repaired (Parts) 25 | . 25 . Core Remaining (%) 100 | 100 . . Volleys Fired 162 | 10 37 115 Largest 2 | 2 2 2 Hottest 160 | 90 110 160 Shots Fired 304 | 20 67 217 Gun 162 | 20 45 97 Cannon 107 | . 15 92 Launcher 8 | . . 8 Special 27 | . 7 20 Kinetic 70 | . 4 66 Thermal 206 | 18 37 151 Explosive . | . . . Electromagnetic 28 | 2 26 . Robot Hit Streak 30 | 13 30 25 Robot Miss Streak 2 | . 1 2 Penetration Max . | . . . Secondary Targets . | . . . Shots Hit Robots 129 | 13 49 67 Core Hits 46 | 9 19 18 Critical Kills 1 | . . 1 Critical Parts Destroyed 1 | . . 1 Critical Strikes 5 | . 3 2 Burn 3 | . 3 . Meltdown 1 | . . 1 Destroy 1 | . . 1 Melee Attacks . | . . . Impact . | . . . Slashing . | . . . Piercing . | . . . Sneak Attacks . | . . . Combat Hostiles . | . . . Follow-up Attacks . | . . . Damage Inflicted 2924 | 197 842 1885 Guns 1208 | 163 505 540 Cannons 922 | . 192 730 Explosions 750 | 34 145 571 Melee . | . . . Ramming . | . . . Kinetic 1051 | . 64 987 Thermal 1564 | 167 499 898 Explosive . | . . . Electromagnetic 309 | 30 279 . Impact . | . . . Slashing . | . . . Piercing . | . . . Highest Corruption . | . . . Average Corruption . | . . . Corruption Purged . | . . . Corruption Blocked . | . . . Overload Shots . | . . . Overflow Damage 52 | 4 9 39 Projectiles 39 | . . 39 Explosions 13 | 4 9 . Melee . | . . . Knockbacks . | . . . Impact . | . . . Kinetic . | . . . Secondary . | . . . Self-Inflicted Damage 93 | 26 8 59 Shots 5 | 1 1 3 Rammed . | . . . Targets Rammed . | . . . Kicked . | . . . Crushed . | . . . Highest Temperature 225 | 72 189 225 Average Temperature 51 | 26 63 47 Received Heat Transfer 487 | . 87 400 Siege Activations . | . . . Robots Corrupted . | . . . Combat Hostiles . | . . . Parts Fried 1 | . 1 . Impact Corruptions . | . . . Robots Melted 2 | . 1 1 Combat Hostiles 1 | . 1 . Parts Melted 9 | . 8 1 Heat Transferred 3237 | 445 1360 1432 Parts Sabotaged . | . . . Parts Stolen . | . . . Parts Stripped . | . . . Power Chain Reactions 4 | 1 3 . Alert | -11 -10 -10 ------- Run | Yrd Mat Sub Peak Influence 198 | 40 198 . Initial 19 | . 19 . Average 46 | 19 53 . Maximum Alert Level . | . . . Low Security (%) 100 | 100 100 . Level 1 . | . . . Level 2 . | . . . Level 3 . | . . . Level 4 . | . . . Level 5 . | . . . High Security . | . . . Max Security . | . . . Squads Dispatched . | . . . Investigation . | . . . Extermination . | . . . Reinforcement . | . . . Assault . | . . . Garrison . | . . . Intercept . | . . . Searches Triggered . | . . . Construction Impeded . | . . . Haulers Reinforced . | . . . Active Scanning Responses . | . . . Cargo Convoy Interrupts . | . . . Stealth | -11 -10 -10 --------- Run | Yrd Mat Sub Distress Signals 1 | . 1 . Communications Jammed . | . . . Distress Signals . | . . . Times Spotted 40 | . 12 28 Peak Tracking Total 6 | . 2 6 Tactical Retreats 3 | . . 3 Traps | -11 -10 -10 ------- Run | Yrd Mat Sub Traps Triggered 3 | . 1 2 Indirectly . | . . . Trap Hack Attempts . | . . . Triggered . | . . . Disarmed . | . . . Reprogrammed . | . . . Reused . | . . . Traps Extracted . | . . . Installed . | . . . Triggered . | . . . Machines | -11 -10 -10 ---------- Run | Yrd Mat Sub Machines Disabled 4 | . 3 1 Max in Single Turn 1 | . 1 1 Machines Repaired . | . . . Machines Dismantled . | . . . Machines Sabotaged . | . . . Overloaded Fab Kills . | . . . Hacking | -11 -10 -10 --------- Run | Yrd Mat Sub Machines Accessed 12 | . 9 3 Terminals 8 | . 8 . Fabricators . | . . . Repair Stations 1 | . 1 . Recycling Units . | . . . Scanalyzers . | . . . Garrison Access . | . . . Total Hacks 45 | . 33 12 Successful 29 | . 17 12 Failed 16 | . 16 . Catastrophic 1 | . 1 . Database Lockouts . | . . . Manual 18 | . 13 5 Terminals 31 | . 31 . Fabricators . | . . . Repair Stations 2 | . 2 . Recycling Units . | . . . Scanalyzers . | . . . Garrison Access . | . . . Terminal Hacks 27 | . 15 12 Record 9 | . . 9 Part Schematic 3 | . 3 . Prototype ID Bank 4 | . 4 . Open Door 1 | . . 1 Branch Access Points 1 | . 1 . Unreport Threat 1 | . 1 . Locate Traps 3 | . 3 . Reinforcement Status 1 | . 1 . Hauler Manifests 1 | . 1 . Registered Components 1 | . 1 . Derelict Proto ID Bank 1 | . . 1 Release Object 1 | . . 1 Fabricator Hacks . | . . . Repair Station Hacks 2 | . 2 . Scan Component 1 | . 1 . Repair 1 | . 1 . Recycling Unit Hacks . | . . . Scanalyzer . | . . . Garrison Access Hacks . | . . . Unauthorized Hacks . | . . . Terminals . | . . . Fabricators . | . . . Repair Stations . | . . . Recycling Units . | . . . Scanalyzers . | . . . Garrison Access . | . . . Data Cores Recovered . | . . . Used . | . . . Hacking Detections 8 | . 8 . Full Trace Events . | . . . Feedback Events . | . . . Feedback Blocked . | . . . Robot Schematics Acquired . | . . . Robots Built . | . . . Authchips . | . . . Time . | . . . Total Robot Build Rating . | . . . Part Schematics Acquired 3 | . 3 . Parts Built . | . . . Authchips . | . . . Time . | . . . Total Part Build Rating . | . . . Parts Repaired 1 | . 1 . Time 26 | . 26 . Parts Recycled . | . . . Recycled Matter . | . . . Retrieved Matter . | . . . Retrieved Components . | . . . Parts Scanalyzed . | . . . Part Schematics Acquired . | . . . Parts Damaged . | . . . Bothacking | -11 -10 -10 ------------ Run | Yrd Mat Sub Used RIF Installer . | . . . Robots Hacked . | . . . Non-combat . | . . . Combat . | . . . Robot Hacks Applied . | . . . Relay Couplers Released . | . . . Fabnet Peak Effective % . | . . . Robots Rewired . | . . . Allies Hacked . | . . . Hacks Repelled . | . . . Allies | -11 -10 -10 -------- Run | Yrd Mat Sub Total Allies . | . . . Largest Group . | . . . Highest-Rated Group . | . . . Highest-Rated Ally . | . . . Total Orders . | . . . Ally Attacks . | . . . Total Damage . | . . . Kills . | . . . Allies Corrupted . | . . . Allies Melted . | . . . Intel | -11 -10 -10 ------- Run | Yrd Mat Sub Robot Analysis Total . | . . . Derelict Logs Recovered 2 | . . 2 Drone Launches . | . . . Drone Recoveries . | . . . Exploration | -11 -10 -10 ------------- Run | Yrd Mat Sub Turns Passed 4373 | 246 1014 3113 Spaces Moved 2251 | 146 623 1482 Core 13 | 9 . 4 Treads 1255 | . 145 1110 Legs 983 | 137 478 368 Wheels . | . . . Hover . | . . . Flight . | . . . Fastest Speed 50 | 50 120 130 Average Speed 161 | 130 131 176 Slowest Speed 500 | 250 190 500 Overloaded Moves . | . . . Propulsion Burnouts . | . . . Robots Hopped . | . . . Cave-ins Triggered . | . . . Exploration Rate (%) 57 | 7 86 79 Regions Visited 2 Branch Regions 1 Pre-discovered Areas . | . . . Known Exits Taken 2 | 1 1 . Unknown Exits Taken . | . . . Scrap Searched 10 | . . 10 Spaces Dug 47 | . 3 44 Terrain Destroyed 138 | . 15 123 Melee . | . . . Projectile 27 | . 3 24 AOE 111 | . 12 99 Terrain Rammed . | . . . Walls Destroyed . | . . . Machines Disabled . | . . . Actions | -11 -10 -10 --------- Run | Yrd Mat Sub Total 2644 | 180 740 1724 Wait 70 | . 30 40 Move 2249 | 145 622 1482 Hop . | . . . Pick Up 31 | 13 8 10 Fast Attach 26 | 7 10 9 Attach 3 | 1 1 1 Detach 9 | 1 4 4 Swap 43 | . 8 35 Drop 45 | 3 20 22 Fire 162 | 10 37 115 Melee . | . . . Ram . | . . . Kick . | . . . Crush . | . . . Escape Stasis . | . . . Rewire . | . . . Trap . | . . . Miscellaneous 6 | . . 6 Route ------- -11/Scrapyard -10/Materials (discovered 6 exits: *Mat x3 / *Min x2 / *Sub) -10/Subcaves (discovered 3 exits: *Mat x2 / *Rec) History --------- Turn | Location | Event 28 | -11/Scrapyard | Identified exit to Materials 28 | -11/Scrapyard | Discovered exit to Materials (range 16) 247 | -11/Scrapyard | Entered Materials 247 | -10/Materials | Evolved 1 slot: Utility x1 303 | -10/Materials | Build established: Hacker-Mutant 555 | -10/Materials | Identified exit to Mines 555 | -10/Materials | Discovered exit to Mines (range 15) 775 | -10/Materials | Identified exit to Materials 775 | -10/Materials | Discovered exit to Materials (range 15) 895 | -10/Materials | Discovered exit to Materials (range 12) 1007 | -10/Materials | Repaired Ion Engine 1082 | -10/Materials | Identified exit to Subcaves 1082 | -10/Materials | Discovered exit to Subcaves (range 4) 1163 | -10/Materials | Discovered exit to Materials (range 4) 1261 | -10/Materials | Entered Subcaves 1327 | -10/Subcaves | Ambushed by swarm of Subdwellers 1601 | -10/Subcaves | Shifting Twisted Machinery released Flamer 1628 | -10/Subcaves | Shifting Twisted Machinery released Sub. Laser 1802 | -10/Subcaves | Build established: Subdweller-Mutant 1825 | -10/Subcaves | Shifting Twisted Machinery released Sub. Beam Cannon 1833 | -10/Subcaves | Shifting Twisted Machinery released Battle Rifle 1860 | -10/Subcaves | Identified exit to Materials 1860 | -10/Subcaves | Discovered exit to Materials (range 9) 2625 | -10/Subcaves | Discovered exit to Materials (range 11) 2678 | -10/Subcaves | Learned Materials trap positions 2700 | -10/Subcaves | Disturbed a concealed Subdweller 3249 | -10/Subcaves | Released subatomizers from SUBCON Basin 3342 | -10/Subcaves | Learned 2 Materials zone layouts 3424 | -10/Subcaves | Visited 4L-MR0's lab 3486 | -10/Subcaves | Build established: Hacker-Mutant 3741 | -10/Subcaves | A Subdweller sparked back to life 3741 | -10/Subcaves | A Subdweller sparked back to life 3741 | -10/Subcaves | A Subdweller sparked back to life 3782 | -10/Subcaves | Core integrity fell below 50% 3814 | -10/Subcaves | Lost 3 parts (2n1u) 3827 | -10/Subcaves | Found Cargo Legs 3829 | -10/Subcaves | Attached Cargo Legs, gained temporary slots: Utility x2 3890 | -10/Subcaves | A swath of the cavern ceiling suddenly collapsed 4243 | -10/Subcaves | Identified exit to Recycling 4243 | -10/Subcaves | Discovered exit to Recycling (range 10) 4245 | -10/Subcaves | Core integrity fell below 20% 4374 | -10/Subcaves | Destroyed by 6D-VA8(R) with Subdweller Machine Gun Last Messages --------------- 04243_ EXIT=FOUND: RECYCLING 04244_ S-10 Pest springs to life. 04252_ Sub. Beam Cannon shoots sparks and powers down. 04252_ Destroyed Lgt. Ion Engine. 04252_ S-10 Pest destroyed. 04259_ Destroyed Flight Unit. 04259_ S-10 Pest destroyed. 04269_ Acquired 19 matter. 04273_ Machine disabled. 04276_ Autobeam Turret suffers critical hit (Meltdown). 04279_ Autobeam Turret suffers critical hit (Destroy). 04279_ Destroyed Autobeam. 04282_ Autobeam Turret destroyed. 04285_ Acquired 18 matter. 04286_ Acquired 10 matter. 04293_ Acquired 28 matter. 04331_ Dropped Broken Sub. Beam Cannon. 04331_ Acquired Beam Rifle. 04372_ Structural Scanner destroyed. 04373_ Destroyed Scrap Shield. Map ----- +----------------------------------------------------+ | ????????######>######?### ###### #### | | ????????##"""" " ""##?## ###### ### | | ????????##" " " "##?## ###### # | | ????????##" % "##?## ##?#### ### | | ????????## ##### ##?#### ####### | | ????????## ###### ####### ##### | | ????????##" "## ### ##### # ### | | ????????##### #### ## #### | | ????????####"== #### ###### ##### | | ?????????### # # #### ##### ## # | | ?????????### ###### ] ###### ## ## # | | ?????????## ## ## # = ###?## ### ## # | | ?????????### #### = ### ##### ## ### ### | | ?????????### # [%= ## ###### ### ###### | | ????????? # #### ### ##### ? | | ?????????## ## ##### ## ##### ?? | | ?????????###### ## ## ### ## #####?? | | ?????????######## ### ## #### | | ?????????????######## ##### ### | | ???????????????######## ###### | | ???????????????????##### ########## ### | | ?????????????????????#### ##### *] ##### | | ??????????????????????### ### [###### | | ?????????###???????###### ## ##??? | | ????????### #### ##??? | | ????????## @ ### #####??? | | ????????# RR###### ##### ??? | | ????????? ###### #####?????? | | ?????????? ##??### ####??????? | | ?????????? ## ##??### ###????????? | | ??????????? ## #??## ####????????? | | ??????????? ?? ???## ####?????????? | | ??????????? ??? ???#### & ###??????????? | | ?????????????? #### ???#### ###??###??????? | | ????????????? #### ?????#######?? ??????? | | ????????????? #??## ?????######??? ??????? | | ????????????? ##### ?????????# ### ??????? | | ????????????? ?## ?????????# ????## ? | | ????????????? #?# ?????????# ??## ?? | | ?????????????# #?? ?????????# #? ??? | | ???????????### ##?? ?????????# !## ???? | | ??????????? #?? ????????### ????? | | ???????????? #??# ???????## ?????? | | ????#####???# #??# ???????? #??????? | | ??### ##### #?? ?????????# #???????# | | ?## ## #??# ??????????# #????????# | | ## #????# #?????????# #????????# | | # ##??## #??????##### ######???# | | # ##?# ###???## #?# ## ##### | | ## ### ##?# ##?## #?## ## | +----------------------------------------------------+ Best States ------------- Heat Dissipation 25 Coolant Potential 50 Energy Generation 18 Energy Capacity 250 Matter Stores 300 Matter Capacity 300 Sight Range 16 Terrain Scan Density 10 Armor Coverage 800 Resistance: KI 35 Resistance: TH 35 Resistance: EX 35 Resistance: EM 35 Resistance: I 35 Resistance: S 35 Resistance: P 35 Utility Shielding 33 Evasion (%) 55 Targeting Accuracy 5 Recoil Reduction 2 Offensive Hacking 20 Item Schematics ----------------- Sml. Storage Unit | -10/Materials | Hacked Beam Cannon | -10/Materials | Hacked ECM Suite | -10/Materials | Hacked Robot Schematics ------------------ None Fabricated ------------ Nothing Alien Tech Used ----------------- None Achievements -------------- None Challenges ------------ None Game ------ Seed BiomechanicalTeslaMallet Manual? 0 Play Time 02:02:17 Cumulative 20.1 hours Start 2024.11.10 @ 04:27:02 End 2024.11.10 @ 19:27:10 Sessions 2 Manual Loads 0 Difficulty Explorer Special Mode None Game No. 6 Rogue 0 Adventurer 0 Explorer 6 Win Type - Total 0 Types 0/0/0/0/0/0/0/0/0 Lore% 6 Gallery% 15 Achievement% 31 Wizard Run 0 Options --------- Layout 0 ASCII 0 Keyboard 0 Movement Mouse Keybinds 0 Fullscreen 2 Font 18/X11Bold Map View 76x50 Zoom Use 0% Tactical HUD 1 Map Filters NONE Filters NONE Steam 1 RUN: 3cd03363-107e-43c0-80a1-5752b299036d